fUSD/lending_fUSD_20250930
["ID","MTS","AMOUNT","RATE_DAILY","PERIOD"]
[388481424,1759199433165,-200.0,0.0001699,2]
[388481425,1759199433174,-200.0,0.0001699,2]
[388481426,1759199433184,-200.0,0.0001699,2]
[388481427,1759199433194,-200.0,0.0001699,2]
[388481428,1759199433204,-200.0,0.0001699,2]
[388481429,1759199433214,-9699.89583368,0.00017,2]
[388481430,1759199433229,-814.64180572,0.00017,2]
[388481431,1759199433242,-720.48845334,0.00017,2]
[388481432,1759199433255,-1662.23664992,0.00017,2]
[388481433,1759199433272,-1228.05018651,0.00017,2]
[388481434,1759199433285,-943.17711426,0.00017,2]
[388481435,1759199433297,-5039.82415718,0.00017,2]
[388481436,1759199433309,-1608.03116888,0.00017,2]
[388481437,1759199433322,-400.4,0.00017,2]
[388481438,1759199433334,-321.629999,0.00017,2]
[388481439,1759199433347,-525.45913367,0.00017,2]
[388481440,1759199433358,-1262.79542914,0.00017,2]
[388481441,1759199433371,-13992.03970169,0.00017,2]
[388481442,1759199433380,-812.99098082,0.00017087,2]
[388481443,1759199433390,-297.19,0.000171,2]
[388481444,1759199433400,-236.83374,0.0001719,2]
[388481445,1759199433410,-856.62,0.00017239,2]
[388481446,1759199433421,-170.66251962,0.00017239,2]
[388481447,1759199433431,-1000.0,0.00017263,2]
[388481448,1759199433440,-2000.0,0.000173,2]
[388481449,1759199433450,-473.47,0.000173,2]
[388481450,1759199433459,-473.47,0.000173,2]
[388481451,1759199433469,-236.83374,0.0001731,2]
[388481452,1759199433478,-200.0,0.00017313,2]
[388481453,1759199433488,-3.25417176,0.00017335,2]
[388481454,1759199433501,-315.47582824,0.00017335,2]
[388481455,1759199433511,-8430.6483186,0.00017348,2]
[388481456,1759199433521,-1875.1744721,0.00017348,2]
[388481457,1759199433530,-1425.3097668,0.00017348,2]
[388481458,1759199433547,-1872.9861905,0.00017348,2]
[388481459,1759199433560,-7921.7419407,0.00017348,2]
[388481460,1759199433570,-1193.7417064,0.00017348,2]
[388481461,1759199433580,-151.0,0.00017348,2]
[388481462,1759199433590,-144.9219936,0.00017348,2]
[388481467,1759199439448,-583.10753344,0.00016999,2]
[388481468,1759199439588,-547.98077755,0.00016999,2]
[388481469,1759199439598,-6.0780064,0.00017348,2]
[388481470,1759199439608,-151.0,0.00017348,2]
[388481471,1759199439617,-137.94758685,0.00017348,2]
[388481472,1759199439645,-13.05241315,0.00017348,2]
[388481473,1759199439654,-151.0,0.00017348,2]
[388481474,1759199439664,-151.0,0.00017348,2]
[388481475,1759199439673,-151.0,0.00017348,2]
[388481476,1759199439683,-151.0,0.00017348,2]
[388481477,1759199439692,-645.92,0.00017348,2]
[388481478,1759199439702,-151.0,0.00017348,2]
[388481479,1759199439711,-245.75114,0.00017348,2]
[388481480,1759199439720,-151.0,0.00017348,2]
[388481481,1759199439730,-151.0,0.00017348,2]
[388481482,1759199439739,-151.0,0.00017348,2]
[388481483,1759199439748,-224.918902,0.00017348,2]
[388481484,1759199439758,-144.78493885,0.00017348,2]
[388481503,1759199445801,-734.33957015,0.00017348,2]
[388481504,1759199445811,-879.124509,0.00017348,2]
[388481505,1759199445820,-879.124509,0.00017348,2]
[388481506,1759199445829,-879.124509,0.00017348,2]
[388481507,1759199445839,-151.0,0.00017348,2]
[388481508,1759199445848,-151.0,0.00017348,2]
[388481509,1759199445857,-151.0,0.00017348,2]
[388481510,1759199445866,-152.413117,0.00017348,2]
[388481511,1759199445876,-204.632371,0.00017348,2]
[388481512,1759199445885,-151.0,0.00017348,2]
[388481513,1759199445895,-431.032258,0.00017348,2]
[388481514,1759199445905,-151.0,0.00017354,2]
[388481515,1759199445916,-777.44368245,0.00017361,2]
[388481516,1759199445925,-18.55550967,0.00017364,2]
[388481517,1759199445937,-277.02706592,0.00017364,2]
[388481518,1759199445948,-1109.99989945,0.00017368,2]
[388481519,1759199445957,-295.58257559,0.00017369,2]
[388481520,1759199445967,-177.66937507,0.00017377,2]
[388481521,1759199445977,-777.44368245,0.00017382,2]
[388481522,1759199445987,-241.87076626,0.00017391,2]
[388481523,1759199445996,-177.66937507,0.00017391,2]
[388481524,1759199446006,-241.87076626,0.00017393,2]
[388481525,1759199446019,-1109.99989945,0.00017395,2]
[388481526,1759199446029,-295.58257559,0.00017397,2]
[388481527,1759199446043,-500.0,0.00017397,2]
[388481528,1759199446055,-295.58257559,0.00017399,2]
[388481529,1759199446067,-400.0,0.000174,2]
[388481530,1759199446078,-473.47,0.000174,2]
[388481531,1759199446088,-2020.41546487,0.000174,2]
[388481532,1759199446098,-167.62,0.000174,2]
[388481533,1759199446108,-471.2,0.000174,2]
[388481534,1759199446117,-473.29,0.000174,2]
[388481536,1759199446127,-232.8906224,0.00017409,2]
[388481537,1759199446137,-241.87076626,0.00017412,2]
[388481538,1759199446148,-1109.99989945,0.00017413,2]
[388481539,1759199446159,-777.44368245,0.00017414,2]
[388481540,1759199446169,-177.66937507,0.00017414,2]
[388481541,1759199446179,-151.0,0.00017415,2]
[388481543,1759199446188,-261.83151675,0.00017415,2]
[388481544,1759199446198,-252.20298808,0.00017415,2]
[388481545,1759199446207,-151.0,0.00017415,2]
[388481547,1759199446217,-151.0,0.00017415,2]
[388481549,1759199446227,-151.0,0.00017415,2]
[388481550,1759199446236,-20.09104131,0.00017415,2]
[388481777,1759200024597,10000.0,0.00015,2]
[388481804,1759200139310,-302.30411214,0.00016602,2]
[388481805,1759200141810,-97.72588786,0.00016602,2]
[388481807,1759200177609,363.21,0.00016578,2]
[388481810,1759200197535,227.9,0.00016595,2]
[388481820,1759200336547,1000.0,0.00016562,2]
[388481821,1759200337268,-180.74,0.00016602,2]
[388481848,1759200588891,-250.0,0.00016732,2]
[388481849,1759200588921,-181.86232963,0.00016732,2]
[388481850,1759200588947,-300.0,0.00016769,2]
[388481851,1759200588975,-500.0,0.0001677,2]
[388481852,1759200589006,-500.0,0.0001677,2]
[388481853,1759200589030,-500.0,0.0001677,2]
[388481854,1759200589496,-500.0,0.0001677,2]
[388481855,1759200589569,-500.0,0.0001677,2]
[388481856,1759200589592,-500.0,0.0001677,2]
[388481857,1759200589615,-500.0,0.0001677,2]
[388481858,1759200589636,-532.11685706,0.0001677,2]
[388481859,1759200589668,-500.0,0.0001677,2]
[388481860,1759200589690,-500.0,0.0001677,2]
[388481861,1759200589717,-500.0,0.0001677,2]
[388481862,1759200589744,-500.0,0.0001677,2]
[388481863,1759200589766,-500.0,0.0001677,2]
[388481864,1759200589788,-500.0,0.0001677,2]
[388481865,1759200589811,-500.0,0.0001677,2]
[388481866,1759200589833,-446.02081331,0.0001677,2]
[388481868,1759200602874,3918.42,0.00016575,2]
[388481873,1759200633571,-300.0,0.00016769,2]
[388481874,1759200633582,-300.0,0.00016769,2]
[388481875,1759200633592,-1200.0,0.00016769,2]
[388481876,1759200633601,-53.97918669,0.0001677,2]
[388481877,1759200633611,-500.0,0.0001677,2]
[388481878,1759200633621,-500.0,0.0001677,2]
[388481879,1759200633630,-500.0,0.0001677,2]
[388481880,1759200633639,-500.0,0.0001677,2]
[388481881,1759200633649,-500.0,0.0001677,2]
[388481882,1759200633660,-300.0,0.0001677,2]
[388481883,1759200633670,-898.0,0.0001677,2]
[388481884,1759200633680,-322.6107,0.00016771,2]
[388481885,1759200633689,-202.1760498,0.00016771,2]
[388481886,1759200633699,-152.38282115,0.00016771,2]
[388481887,1759200633709,-151.0,0.00016771,2]
[388481888,1759200633719,-151.0,0.00016771,2]
[388481889,1759200633728,-151.0,0.00016771,2]
[388481890,1759200633737,-233.72339247,0.00016771,2]
[388481891,1759200633747,-151.0,0.00016771,2]
[388481892,1759200633757,-151.0,0.00016771,2]
[388481893,1759200633766,-236.78590566,0.00016771,2]
[388481894,1759200633777,-500.0,0.00016771,2]
[388481895,1759200633786,-500.0,0.00016771,2]
[388481896,1759200633797,-500.0,0.00016771,2]
[388481897,1759200633806,-500.0,0.00016771,2]
[388481898,1759200633815,-500.0,0.00016771,2]
[388481899,1759200633825,-599.60298507,0.00016771,2]
[388481900,1759200633834,-500.0,0.00016771,2]
[388481901,1759200633843,-500.0,0.00016771,2]
[388481902,1759200633853,-413.8494521,0.00016771,2]
[388481903,1759200633863,-239.84119403,0.00016771,2]
[388481904,1759200633872,-200.0,0.00016771,2]
[388481905,1759200633882,-310.51709564,0.00016771,2]
[388481906,1759200633891,-666.0,0.00016776,3]
[388481907,1759200633901,-2034.61,0.0001678,2]
[388481908,1759200633911,-28068.39,0.00016781,2]
[388481909,1759200633920,-150.0,0.0001679,7]
[388481910,1759200633929,-264.26,0.00016801,2]
[388481911,1759200633939,-653.45,0.00016831,2]
[388481912,1759200633949,-157.00216622,0.00016989,2]
[388481913,1759200633958,-1193.89,0.00017,2]
[388481914,1759200633968,-2034.61,0.00017054,2]
[388481915,1759200633978,-168.72,0.00017086,2]
[388481916,1759200633988,-473.47,0.000171,2]
[388481917,1759200633997,-2000.0,0.000173,2]
[388481918,1759200634007,-175.16,0.000173,2]
[388481919,1759200634017,-473.47,0.000173,2]
[388481920,1759200634027,-412.11,0.000173,2]
[388481921,1759200634036,-337.77,0.000173,2]
[388481922,1759200634046,-200.0,0.00017313,2]
[388481923,1759200634056,-150.85964301,0.00017321,2]
[388481924,1759200634066,-1016.92766938,0.00017326,2]
[388481925,1759200634075,-2034.61,0.00017328,2]
[388481926,1759200634085,-685.296,0.00017348,2]
[388481927,1759200634094,-2673.1500556,0.00017359,2]
[388481928,1759200634104,-2300.8691737,0.00017366,2]
[388481929,1759200634114,-1597.92947047,0.00017372,2]
[388481930,1759200634124,-157.70542258,0.00017376,2]
[388481931,1759200634133,-1597.92947047,0.00017378,2]
[388481932,1759200634143,-157.70542258,0.00017388,2]
[388481933,1759200634153,-157.70542258,0.00017394,2]
[388481934,1759200634162,-350.8,0.000174,2]
[388481935,1759200634172,-167.57,0.000174,2]
[388481936,1759200634181,-412.11,0.000174,2]
[388481937,1759200634190,-151.0,0.000174,2]
[388481938,1759200634200,-151.0,0.000174,2]
[388481939,1759200634209,-151.0,0.000174,2]
[388481940,1759200634218,-157.70542258,0.00017406,2]
[388481941,1759200634229,-1597.92947047,0.0001741,2]
[388481942,1759200634239,-157.70542258,0.00017413,2]
[388481943,1759200634249,-425.0,0.00017415,2]
[388481944,1759200634259,-466.0,0.00017415,2]
[388481945,1759200634268,-157.88916,0.00017415,2]
[388481946,1759200634277,-500.0,0.00017415,2]
[388481947,1759200634287,-1457.0,0.00017415,2]
[388481948,1759200634296,-150.0,0.00017415,2]
[388481949,1759200634306,-441.0,0.00017415,2]
[388481950,1759200634315,-151.0,0.00017415,2]
[388481951,1759200634325,-151.0,0.00017415,2]
[388481952,1759200634334,-287.22136498,0.00017415,2]
[388481953,1759200634343,-500.0,0.00017415,2]
[388481954,1759200634353,-500.0,0.00017415,2]
[388481955,1759200634362,-150.0,0.00017415,2]
[388481956,1759200634371,-253.41257278,0.00017415,2]
[388481957,1759200634381,-500.0,0.00017415,2]
[388481958,1759200634390,-150.0,0.00017415,2]
[388481959,1759200634399,-150.0,0.00017415,2]
[388481960,1759200634409,-150.0,0.00017415,2]
[388481961,1759200634419,-500.0,0.00017415,2]
[388481962,1759200634429,-500.0,0.00017415,2]
[388481963,1759200634438,-241.87076626,0.00017421,2]
[388481964,1759200634447,-1109.99989945,0.00017421,2]
[388481965,1759200634457,-177.66937507,0.00017422,2]
[388481966,1759200634467,-177.66937507,0.00017423,2]
[388481967,1759200634476,-227.9,0.00017425,2]
[388481968,1759200634485,-1109.99989945,0.00017427,2]
[388481969,1759200634495,-777.44368245,0.0001743,2]
[388481970,1759200634504,-1597.92947047,0.00017431,2]
[388481971,1759200634514,-295.58257559,0.0001744,2]
[388481972,1759200634524,-202.31,0.00017441,2]
[388481973,1759200634534,-241.87076626,0.00017448,2]
[388481974,1759200634544,-1333.05814585,0.00017453,2]
[388481975,1759200634553,-241.87076626,0.00017453,2]
[388481976,1759200634563,-30026.77979747,0.00017453,2]
[388481977,1759200634576,-21585.85619034,0.00017453,2]
[388481978,1759200634588,-8315.96223595,0.00017453,2]
[388481979,1759200634597,-295.58257559,0.00017454,2]
[388481980,1759200634607,-606.54698304,0.00017455,2]
[388481981,1759200634616,-777.44368245,0.00017455,2]
[388481982,1759200634626,-285.6174746,0.00017456,2]
[388481983,1759200634635,-151.0,0.00017456,2]
[388481984,1759200634645,-151.0,0.00017456,2]
[388481985,1759200634655,-157.70542258,0.00017457,2]
[388481986,1759200634667,-606.54698304,0.0001746,2]
[388481987,1759200634677,-177.66937507,0.0001746,2]
[388481988,1759200634686,-244.81071526,0.00017461,2]
[388481989,1759200634696,-777.44368245,0.00017462,2]
[388481990,1759200634706,-777.44368245,0.00017462,2]
[388481991,1759200634716,-177.66937507,0.00017462,2]
[388481992,1759200634726,-431.35850187,0.00017462,2]
[388481993,1759200634736,-1109.99989945,0.00017463,2]
[388481994,1759200634746,-674.10786876,0.00017464,2]
[388481995,1759200634755,-244.81071526,0.00017464,2]
[388481996,1759200634765,-241.3235588,0.00017465,2]
[388481997,1759200634774,-34.86580063,0.00017465,2]
[388481998,1759200634788,-527.84147304,0.00017465,2]
[388481999,1759200634798,-724.26947471,0.00017466,2]
[388482000,1759200634809,-244.81071526,0.00017466,2]
[388482001,1759200634818,-562.70727367,0.00017466,2]
[388482002,1759200634827,-619.38139404,0.00017468,2]
[388482003,1759200634837,-241.3235588,0.00017468,2]
[388482004,1759200634847,-431.35850187,0.00017469,2]
[388482005,1759200634856,-1109.99989945,0.00017469,2]
[388482006,1759200634865,-619.38139404,0.00017471,2]
[388482007,1759200634875,-166.06475418,0.00017473,2]
[388482008,1759200634884,-1597.92947047,0.00017474,2]
[388482009,1759200634894,-12693.42309287,0.00017474,2]
[388482010,1759200634905,-725.60602438,0.00017474,2]
[388482013,1759200637732,-313.93125095,0.00017474,2]
[388482014,1759200637788,-1387.34462168,0.00017474,2]
[388482015,1759200637801,-1111.27761687,0.00017474,2]
[388482016,1759200637947,-1152.83074847,0.00017474,2]
[388482017,1759200637960,-34533.36459009,0.00017474,2]
[388482018,1759200638058,-362.4494482,0.00017474,2]
[388482019,1759200638113,-347.10863827,0.00017474,2]
[388482030,1759200639746,-1473.93976747,0.00017474,2]
[388482033,1759200639759,-274.26881639,0.00017474,2]
[388482038,1759200639800,-972.01581098,0.00017474,2]
[388482040,1759200639812,-560.7045649,0.00017474,2]
[388482042,1759200639824,-632.97500001,0.00017474,2]
[388482047,1759200639855,-3387.35823223,0.00017474,2]
[388482048,1759200639865,-166.06475418,0.00017474,2]
[388482049,1759200639874,-419.83117927,0.00017475,5]
[388482050,1759200639884,-453.75498574,0.00017476,2]
[388482051,1759200639894,-166.06475418,0.00017476,2]
[388482053,1759200639904,-1098.82,0.00017476,2]
[388482054,1759200639913,-241.3235588,0.00017476,2]
[388482056,1759200639923,-562.70727367,0.00017478,2]
[388482058,1759200639933,-285.6174746,0.00017478,2]
[388482061,1759200639943,-619.38139404,0.00017479,2]
[388482063,1759200639953,-674.10786876,0.0001748,2]
[388482065,1759200639962,-241.87076626,0.00017481,2]
[388482067,1759200639971,-157.70542258,0.00017481,2]
[388482069,1759200639981,-428.66,0.00017481,2]
[388482071,1759200639990,-150.0,0.00017481,2]
[388482073,1759200640000,-26022.46030808,0.00017483,2]
[388482075,1759200640012,-588.77502464,0.00017483,2]
[388482077,1759200640025,-1754.0,0.00017483,2]
[388482080,1759200640036,-864.24787903,0.00017483,2]
[388482082,1759200640053,-683.16,0.00017483,2]
[388482085,1759200640064,-4783.78457992,0.00017483,2]
[388482087,1759200640076,-1542.53857869,0.00017483,2]
[388482089,1759200640088,-6595.96716314,0.00017483,2]
[388482092,1759200640099,-259.75918832,0.00017483,2]
[388482102,1759200643090,-500.0,0.00017483,2]
[388482117,1759200646562,-441.33697232,0.00017483,2]
[388482118,1759200646599,-6169.11487027,0.00017483,2]
[388482119,1759200646619,-272.33000003,0.00017483,2]
[388482120,1759200646813,-2719.118345,0.00017483,2]
[388482121,1759200646854,-2124.91251447,0.00017483,2]
[388482122,1759200646866,-2501.108,0.00017483,2]
[388482279,1759201832034,-1170.27,0.00016611,2]
[388482280,1759201832045,-250.0,0.00016627,2]
[388482281,1759201832055,-178.39550921,0.00016644,2]
[388482283,1759201832192,-71.60449079,0.00016644,2]
[388482284,1759201832202,-150.0,0.0001665,7]
[388482285,1759201832214,-503.14,0.00016769,2]
[388482286,1759201832224,-826.82,0.00016769,2]
[388482287,1759201832234,-170.92,0.00016794,2]
[388482289,1759201832244,-181.6,0.00016808,2]
[388482290,1759201832255,-156.27,0.00016831,2]
[388482291,1759201832265,-153.91903629,0.00016989,2]
[388482292,1759201832275,-153.60199711,0.00016989,2]
[388482293,1759201832285,-422.96709256,0.00017047,2]
[388482294,1759201832296,-1599.30590887,0.00017074,2]
[388482295,1759201832306,-1098.23,0.000171,2]
[388482296,1759201832317,-2.12147438,0.00017199,2]
[388482297,1759201832350,-297.87852562,0.00017199,2]
[388482298,1759201832360,-300.0,0.00017199,2]
[388482299,1759201832370,-319.35927753,0.000172,2]
[388482300,1759201832382,-876.47072247,0.000172,2]
[388482301,1759201832392,-300.0,0.000172,2]
[388482303,1759201832402,-334.41,0.000172,2]
[388482305,1759201832412,-300.0,0.000172,2]
[388482306,1759201832423,-1983.58617581,0.000172,2]
[388482307,1759201832433,-429.15089398,0.0001729,2]
[388482308,1759201832443,-239.84119403,0.0001729,2]
[388482309,1759201832453,-2000.0,0.000173,2]
[388482311,1759201832463,-500.0,0.00017342,2]
[388482312,1759201832473,-182.29392494,0.00017342,2]
[388482313,1759201832482,-500.0,0.00017342,2]
[388482314,1759201832492,-200.0,0.00017343,2]
[388482315,1759201832503,-170.65,0.0001735,2]
[388482316,1759201832513,-1983.58617581,0.00017356,2]
[388482317,1759201832523,-183.81963136,0.0001736,2]
[388482319,1759201832533,-183.81963136,0.00017361,2]
[388482320,1759201832543,-253.16232883,0.00017361,2]
[388482326,1759201837884,-1371.26746359,0.00017361,2]
[388482327,1759201837937,-6302.49332548,0.00017361,2]
[388482328,1759201837950,-358.33485164,0.00017361,2]
[388482329,1759201837962,-385.36424049,0.00017361,2]
[388482330,1759201837999,-488.66430191,0.00017361,2]
[388482331,1759201838012,-68.37171242,0.00017361,2]
[388482332,1759201838023,-332.62828637,0.00017364,2]
[388482333,1759201838035,-349.66723541,0.00017364,2]
[388482334,1759201838045,-9227.65822436,0.00017366,2]
[388482335,1759201838055,-682.29552178,0.00017375,2]
[388482336,1759201838069,-183.81963136,0.00017386,2]
[388482337,1759201838079,-9227.65822436,0.00017399,2]
[388482338,1759201838090,-18.00840386,0.00017399,2]
[388482339,1759201838102,-664.28711792,0.00017399,2]
[388482340,1759201838113,-628.76074486,0.00017399,2]
[388482342,1759201841136,-517.95867663,0.00017399,2]
[388482343,1759201841173,-319.15186961,0.00017399,2]
[388482344,1759201841182,-212.68614392,0.000174,2]
[388482345,1759201841194,-995.31385608,0.000174,2]
[388482346,1759201841203,-9227.65822436,0.00017425,2]
[388482347,1759201841213,-682.29552178,0.00017428,2]
[388482348,1759201841222,-682.29552178,0.00017431,2]
[388482349,1759201841231,-11595.83213119,0.00017446,2]
[388482350,1759201841241,-9227.65822436,0.00017452,2]
[388482351,1759201841250,-448.75086726,0.00017454,2]
[388482352,1759201841259,-183.81963136,0.00017467,2]
[388482353,1759201841269,-183.81963136,0.00017467,2]
[388482354,1759201841279,-9227.65822436,0.00017469,2]
[388482355,1759201841288,-682.29552178,0.0001747,2]
[388482356,1759201841297,-322.6107,0.00017473,2]
[388482357,1759201841306,-500.0,0.00017473,2]
[388482358,1759201841315,-163.24199707,0.00017473,2]
[388482359,1759201841324,-602.5088593,0.00017473,2]
[388482360,1759201841333,-679.11490035,0.00017473,2]
[388482361,1759201841341,-500.0,0.00017473,2]
[388482362,1759201841350,-500.0,0.00017473,2]
[388482363,1759201841359,-500.0,0.00017473,2]
[388482364,1759201841368,-500.0,0.00017473,2]
[388482365,1759201841377,-500.0,0.00017473,2]
[388482366,1759201841386,-500.0,0.00017473,2]
[388482367,1759201841395,-500.0,0.00017473,2]
[388482368,1759201841404,-500.0,0.00017473,2]
[388482369,1759201841413,-500.0,0.00017473,2]
[388482370,1759201841422,-500.0,0.00017473,2]
[388482371,1759201841432,-500.0,0.00017473,2]
[388482372,1759201841441,-500.0,0.00017473,2]
[388482373,1759201841449,-500.0,0.00017473,2]
[388482374,1759201841459,-484.34694504,0.00017473,2]
[388482375,1759201841467,-500.0,0.00017473,2]
[388482376,1759201841476,-500.0,0.00017473,2]
[388482377,1759201841485,-162.25842697,0.00017473,2]
[388482378,1759201841494,-500.0,0.00017473,2]
[388482379,1759201841503,-500.0,0.00017473,2]
[388482380,1759201841511,-155.32090044,0.00017473,2]
[388482381,1759201841520,-213.13184101,0.00017473,2]
[388482382,1759201841529,-519.34641032,0.00017473,2]
[388482383,1759201841538,-579.08177686,0.00017473,2]
[388482384,1759201841548,-214.37419146,0.00017473,2]
[388482385,1759201841556,-210.57867426,0.00017473,2]
[388482386,1759201841565,-200.0,0.00017473,2]
[388482387,1759201841575,-154.25019062,0.00017473,2]
[388482388,1759201841584,-500.0,0.00017473,2]
[388482389,1759201841593,-500.0,0.00017473,2]
[388482390,1759201841602,-500.0,0.00017473,2]
[388482391,1759201841611,-500.0,0.00017473,2]
[388482392,1759201841619,-500.0,0.00017473,2]
[388482393,1759201841628,-500.0,0.00017473,2]
[388482394,1759201841637,-500.0,0.00017473,2]
[388482395,1759201841646,-500.0,0.00017473,2]
[388482396,1759201841655,-500.0,0.00017473,2]
[388482397,1759201841664,-500.0,0.00017473,2]
[388482398,1759201841673,-518.40732892,0.00017473,2]
[388482399,1759201841682,-1538.89054221,0.00017473,2]
[388482400,1759201841694,-222.81945779,0.00017473,2]
[388482401,1759201841703,-222.48394032,0.00017473,2]
[388482402,1759201842686,-325.42295744,0.00017473,2]
[388482403,1759201842739,-317.71490003,0.00017473,2]
[388482428,1759201843008,-1734.08014104,0.00017473,2]
[388482430,1759201843061,-490.0,0.00017473,2]
[388482431,1759201843116,-343.42190025,0.00017473,2]
[388482436,1759201846107,-1282.66302147,0.00017473,2]
[388482465,1759202155255,284.22,0.00016545,2]
[388482472,1759202193458,158.11,8.266e-05,2]
[388482540,1759202253083,3313.9,0.00016551,2]
[388482557,1759202297430,666.0,0.00016485,3]
[388482558,1759202302957,1000.0,0.00016485,2]
[388482576,1759202403095,173.71,0.00016476,2]
[388482590,1759202430163,2164.81,0.00016479,2]
[388482692,1759202694592,150.0,0.00016461,2]
[388482701,1759202725947,150.0,0.0001647,7]
[388482793,1759203032193,-1200.0,0.00016768,2]
[388482794,1759203032204,-343.58436586,0.00016769,2]
[388482795,1759203032303,-349.48044198,0.00016769,2]
[388482796,1759203032314,-162.23202116,0.00016769,2]
[388482797,1759203032327,-181.56102711,0.00016769,2]
[388482798,1759203032337,-1292.24780196,0.00016769,2]
[388482799,1759203032349,-2000.0,0.0001677,2]
[388482800,1759203032359,-1745.75,0.0001677,2]
[388482801,1759203032370,-529.153,0.0001677,2]
[388482802,1759203032388,-1000.0,0.0001677,2]
[388482803,1759203032399,-611.547,0.0001677,2]
[388482804,1759203032410,-150.0,0.00016989,2]
[388482805,1759203032422,-150.0,0.00016989,2]
[388482806,1759203032432,-150.0,0.00016989,2]
[388482807,1759203032443,-150.0,0.00016989,2]
[388482808,1759203032453,-150.0,0.00016989,2]
[388482809,1759203032464,-150.0,0.00016989,2]
[388482810,1759203032475,-150.0,0.00016989,2]
[388482811,1759203032487,-150.0,0.00016989,2]
[388482812,1759203032498,-150.0,0.00016989,2]
[388482813,1759203032508,-150.0,0.00016989,2]
[388482814,1759203032519,-150.0,0.00016989,2]
[388482815,1759203032529,-150.0,0.00016989,2]
[388482816,1759203032539,-150.0,0.00017178,2]
[388482817,1759203032549,-628.10140789,0.00017197,2]
[388482818,1759203032560,-500.0,0.00017233,2]
[388482819,1759203032570,-150.0,0.00017259,2]
[388482820,1759203032586,-2000.0,0.000173,2]
[388482822,1759203032595,-216.84393283,0.00017309,2]
[388482823,1759203032615,-483.15606717,0.00017309,2]
[388482824,1759203032626,-168.0,0.00017349,2]
[388482825,1759203032637,-161.85,0.00017349,2]
[388482826,1759203032649,-501.26912723,0.00017349,2]
[388482827,1759203032662,-498.73087277,0.00017349,2]
[388482828,1759203032674,-168.0,0.00017361,2]
[388482829,1759203032684,-797.76912723,0.00017363,2]
[388482830,1759203032697,-7462.36159516,0.00017363,2]
[388482831,1759203032707,-239.84119403,0.00017363,2]
[388482832,1759203032718,-151.9217705,0.00017363,2]
[388482833,1759203032728,-403.86572198,0.00017363,2]
[388482834,1759203032739,-150.0,0.00017367,2]
[388482835,1759203032750,-150.0,0.00017367,2]
[388482836,1759203032760,-150.0,0.00017367,2]
[388482837,1759203032770,-150.0,0.00017367,2]
[388482838,1759203032781,-327.31397325,0.0001737,2]
[388482839,1759203032799,-4044.0806,0.0001737,2]
[388482840,1759203032810,-1000.0,0.00017372,2]
[388482841,1759203032821,-534.03871826,0.00017372,2]
[388482842,1759203032832,-1960.00083457,0.00017372,2]
[388482843,1759203032843,-284.22,0.00017372,2]
[388482844,1759203032854,-583.16343629,0.00017376,2]
[388482845,1759203032866,-583.16343629,0.00017382,2]
[388482846,1759203032876,-287.26836,0.00017384,2]
[388482847,1759203032887,-583.16343629,0.00017385,2]
[388482848,1759203032898,-287.26836,0.0001739,2]
[388482849,1759203032909,-287.26836,0.00017399,2]
[388482850,1759203032920,-926.06944031,0.000174,2]
[388482851,1759203032931,-2943.73311965,0.000174,2]
[388482852,1759203032943,-679.27449454,0.000174,2]
[388482853,1759203032962,-724.94822177,0.000174,2]
[388482854,1759203032975,-1592.24780196,0.000174,2]
[388482855,1759203032989,-8245.13225539,0.000174,2]
[388482856,1759203032999,-287.26836,0.00017402,2]
[388482857,1759203033009,-622.55779241,0.00017418,2]
[388482858,1759203033020,-717.56380877,0.00017427,2]